bitfinex-derivatives/quotes_SOLF0:USTF0_20241203
["timestamp","ask_amount","ask_price","bid_price","bid_amount"]
[1733197594546,2.08,228.77,228.73,6.4805759]
[1733197594743,2.1854,228.76,228.73,6.4805759]
[1733197595744,2.1854,228.75,228.73,6.4805759]
[1733197595952,2.1854,228.75,228.7,2.1859]
[1733197596151,2.1854,228.75,228.72,6.4805759]
[1733197597449,2.1856,228.73,228.72,6.4805759]
[1733197600450,2.1853,228.76,228.72,6.4805759]
[1733197600650,2.1853,228.76,228.75,6.4805759]
[1733197600854,2.1853,228.76,228.71,2.1858]
[1733197601150,2.1855,228.75,228.69,2.1859]
[1733197601354,2.1855,228.75,228.74,6.4805759]
[1733197602653,2.1853,228.76,228.74,6.4805759]
[1733197602858,2.08,228.77,228.74,6.4805759]
[1733197603352,2.1853,228.76,228.74,6.4805759]
[1733197605151,2.08,228.77,228.64,0.5795]
[1733197605351,2.08,228.77,228.63,0.794]
[1733197605559,2.1858,228.71,228.7,6.4805759]
[1733197605750,4.2658,228.71,228.7,6.4805759]
[1733197609558,2.08,228.71,228.63,0.794]
[1733197609761,2.186,228.7,228.68,6.4805759]
[1733197611664,2.186,228.69,228.68,6.4805759]
[1733197612462,2.08,228.71,228.62,1.3117]
[1733197612670,2.1863,228.67,228.66,6.4805759]
[1733197615769,2.08,228.71,228.59,2.1869]
[1733197615770,8.5605759,228.71,228.59,2.1869]
[1733197615972,2.08,228.7,228.63,6.4805759]
[1733197616165,45.5,228.84,228.68,6.4805759]
[1733197616367,6.4805759,228.8,228.73,6.4805759]
[1733197616571,46.7892,228.84,228.75,6.4805759]
[1733197616772,2.1852,228.78,228.75,6.4805759]
[1733197616972,2.08,228.77,228.75,6.4805759]
[1733197619475,4.2653,228.77,228.75,6.4805759]
[1733197620075,2.08,228.77,228.75,6.4805759]
[1733197620672,2.08,228.77,228.73,6.4805759]
[1733197621382,2.1854,228.76,228.72,6.4805759]
[1733197622077,2.1854,228.75,228.72,6.4805759]
[1733197624381,2.08,228.77,228.72,6.4805759]
[1733197624781,2.08,228.77,228.74,6.4805759]
[1733197626084,2.1854,228.76,228.74,6.4805759]
[1733197628382,2.1854,228.75,228.74,6.4805759]
[1733197631080,2.1861,228.69,228.63,1.3269]
[1733197631278,2.08,228.69,228.63,1.3269]
[1733197631485,2.08,228.69,228.67,6.4805759]
[1733197631684,2.1861,228.68,228.67,6.4805759]
[1733197632791,2.1863,228.67,228.65,6.4805759]
[1733197633488,2.1865,228.64,228.62,6.4805759]
[1733197633686,2.1865,228.64,228.57,2.1248]
[1733197633687,2.08,228.64,228.57,2.1248]
[1733197633886,2.08,228.64,228.61,6.4805759]
[1733197634186,2.08,228.64,228.57,1.3298]
[1733197634489,2.08,228.64,228.61,6.4805759]
[1733197635687,2.1866,228.63,228.61,6.4805759]
[1733197636688,2.08,228.64,228.59,6.4805759]
[1733197636887,2.08,228.64,228.58,6.4805759]
[1733197637084,8.5605759,228.64,228.56,6.4805759]
[1733197637289,2.187,228.59,228.56,6.4805759]
[1733197637489,2.08,228.58,228.56,6.4805759]
[1733197640393,2.1866,228.63,228.58,2.187]
[1733197640699,2.08,228.62,228.53,5.0]
[1733197640893,2.08,228.62,228.54,1.09464221]
[1733197641093,2.08,228.62,228.53,5.0]
[1733197641397,2.08,228.62,228.54,1.09463421]
[1733197641593,2.08,228.62,228.53,5.0]
[1733197641594,2.1868,228.61,228.53,5.0]
[1733197641799,2.08,228.62,228.61,6.4805759]
[1733197642296,2.08,228.64,228.61,6.4805759]
[1733197642498,2.08,228.64,228.63,6.4805759]
[1733197643394,2.1862,228.67,228.63,6.4805759]
[1733197643600,2.08,228.66,228.53,5.0]
[1733197643896,2.08,228.66,228.54,5.03424901]
[1733197644098,2.08,228.66,228.55,2.84544509]
[1733197644301,2.08,228.66,228.65,6.4805759]
[1733197645094,4.2663,228.66,228.65,6.4805759]
[1733197648497,2.08,228.66,228.65,6.4805759]
[1733197649097,2.08,228.66,228.65,8.6669759]
[1733197649502,9.1955759,228.75,228.65,8.6669759]
[1733197649503,2.715,228.75,228.65,6.4805759]
[1733197649704,2.1857,228.72,228.68,6.4805759]
[1733197650200,2.08,228.74,228.68,6.4805759]
[1733197650400,2.1858,228.71,228.68,6.4805759]
[1733197650702,2.08,228.74,228.66,6.4805759]
[1733197650902,2.1859,228.71,228.66,6.4805759]
[1733197651400,2.1859,228.71,228.66,8.6667759]
[1733197652498,2.08,228.74,228.66,8.6667759]
[1733197652698,2.1858,228.71,228.66,8.6667759]
[1733197654201,2.1859,228.7,228.66,6.4805759]
[1733197654503,2.08,228.69,228.56,2.08]
[1733197654703,4.2661,228.68,228.64,2.1865]
[1733197654902,2.08,228.68,228.63,6.4805759]
[1733197655602,2.1863,228.67,228.63,6.4805759]
[1733197656903,2.08,228.68,228.53,7.08]
[1733197657104,2.1862,228.67,228.63,6.4805759]
[1733197657903,2.08,228.68,228.63,6.4805759]
[1733197658104,2.1863,228.66,228.63,6.4805759]
[1733197660701,2.1865,228.64,228.61,6.4805759]
[1733197660902,2.715,228.75,228.58,6.4805759]
[1733197660903,2.08,228.63,228.58,6.4805759]
[1733197661098,2.08,228.62,228.58,6.4805759]
[1733197661307,2.08,228.61,228.58,8.6675759]
[1733197661603,2.08,228.6,228.53,5.0]
[1733197661809,2.08,228.59,228.58,6.4805759]
[1733197663001,2.08,228.59,228.53,5.0]
[1733197663203,2.08,228.59,228.56,2.1872]
[1733197663405,2.08,228.59,228.57,6.4805759]
[1733197666104,8.5605759,228.59,228.53,5.0]
[1733197667610,2.1872,228.57,228.53,5.0]
[1733197667903,8.5605759,228.59,228.53,5.0]
[1733197668810,2.1874,228.54,228.53,5.0]
[1733197669110,4.2674,228.54,228.53,5.0]
[1733197670807,4.2674,228.54,228.53,0.65767349]
[1733197671012,2.1878,228.51,228.47,6.4805759]
[1733197672307,2.08,228.54,228.47,6.4805759]
[1733197673009,2.1878,228.51,228.47,6.4805759]
[1733197673205,2.08,228.54,228.47,6.4805759]
[1733197673401,2.1878,228.5,228.47,6.4805759]
[1733197673609,2.08,228.49,228.47,6.4805759]
[1733197673800,2.08,228.49,228.36,2.5884]
[1733197673801,2.08,228.49,228.44,6.4805759]
[1733197674809,2.188,228.48,228.44,2.1884]
[1733197675005,2.188,228.48,228.44,6.4805759]
[1733197676214,2.1881,228.47,228.44,6.4805759]
[1733197676406,2.08,228.49,228.44,6.4805759]
[1733197677511,2.1881,228.48,228.44,6.4805759]
[1733197678515,2.1881,228.48,228.44,8.6689759]
[1733197678709,2.1881,228.48,228.36,2.5884]
[1733197678914,2.08,228.49,228.37,5.03846445]
[1733197679217,2.1881,228.47,228.43,6.4805759]
[1733197680022,2.1881,228.47,228.43,8.6690759]
[1733197682216,2.1875,228.53,228.48,2.1879]
[1733197682517,2.08,228.52,228.49,6.4805759]
[1733197683318,4.2676,228.52,228.49,6.4805759]
[1733197685113,4.2676,228.52,228.47,8.6686759]
[1733197688127,2.1877,228.51,228.47,8.6686759]
[1733197688630,17.5094,228.83,228.5,6.4805759]
[1733197688824,6.4805759,228.69,228.62,6.4805759]
[1733197689025,2.08,228.68,228.62,6.4805759]
[1733197689326,4.2661,228.68,228.62,6.4805759]
[1733197689827,4.2661,228.68,228.61,2.1867]
[1733197690423,2.12,228.67,228.61,2.1867]
[1733197692832,4.3062,228.67,228.6,6.4805759]
[1733197693728,4.3062,228.67,228.6,8.6673759]
[1733197693931,2.12,228.67,228.6,6.4805759]
[1733197694133,2.1864,228.66,228.6,6.4805759]
[1733197695239,2.1864,228.66,228.62,6.4805759]
[1733197696638,2.12,228.67,228.62,6.4805759]
[1733197696836,2.1864,228.65,228.62,6.4805759]
[1733197699036,2.12,228.67,228.62,6.4805759]
[1733197701447,4.3063,228.67,228.61,2.1868]
[1733197701642,8.6005759,228.67,228.58,2.187]
[1733197701841,8.6005759,228.67,228.58,8.6675759]
[1733197702241,2.1865,228.64,228.59,2.1869]
[1733197703343,8.6005759,228.67,228.58,6.4805759]
[1733197703540,8.6005759,228.67,228.58,8.6675759]
[1733197703741,8.6005759,228.67,228.58,6.4805759]
[1733197704540,2.1867,228.62,228.58,6.4805759]
[1733197704746,2.12,228.61,228.58,6.4805759]
[1733197704941,2.12,228.61,228.6,6.4805759]
[1733197705148,2.12,228.61,228.6,8.6673759]
[1733197706148,2.12,228.61,228.6,6.4805759]
[1733197713147,2.12,228.61,228.59,2.1869]
[1733197713349,2.12,228.61,228.58,8.6675759]
[1733197715847,2.12,228.61,228.59,2.1869]
[1733197719143,2.12,228.61,228.58,6.4805759]
[1733197719144,2.12,228.61,228.58,8.6675759]
[1733197720854,2.12,228.61,228.59,2.1869]
[1733197721151,2.12,228.61,228.6,6.4805759]
[1733197721358,2.12,228.61,228.58,6.4805759]
[1733197721650,4.3068,228.61,228.58,8.6675759]
[1733197722251,4.3068,228.61,228.52,1.8445]
[1733197722252,2.12,228.61,228.52,1.2638]
[1733197722456,8.6005759,228.61,228.51,1.3428]
[1733197722655,8.6005759,228.61,228.53,6.4805759]
[1733197723155,2.1872,228.57,228.53,8.6679759]
[1733197723453,2.08,228.56,228.53,8.6679759]
[1733197723955,4.2673,228.56,228.52,8.6681759]
[1733197725852,2.1874,228.55,228.52,6.4805759]
[1733197726151,2.08,228.56,228.5,8.6682759]
[1733197726351,2.1875,228.54,228.5,8.6682759]
[1733197730566,2.1873,228.55,228.51,2.1877]
[1733197731658,2.1873,228.55,228.49,6.4805759]
[1733197732166,2.1875,228.54,228.5,2.1878]
[1733197732757,2.1873,228.55,228.5,2.1878]
[1733197734465,6.4805759,228.55,228.47,6.4805759]
[1733197735361,2.1876,228.52,228.48,2.188]
[1733197735564,2.08,228.51,228.47,6.4805759]
[1733197735963,4.2678,228.51,228.47,6.4805759]
[1733197736264,2.08,228.51,228.47,6.4805759]
[1733197737064,2.1878,228.5,228.47,6.4805759]
[1733197737266,2.1878,228.5,228.46,2.1881]
[1733197737963,2.1878,228.5,228.47,6.4805759]
[1733197738662,2.08,228.51,228.47,6.4805759]
[1733197738858,4.2677,228.51,228.47,6.4805759]
[1733197739459,2.188,228.49,228.45,2.1883]
[1733197739664,6.4805759,228.51,228.45,6.4805759]
[1733197739963,2.08,228.57,228.53,2.1875]
[1733197740161,2.08,228.57,228.54,6.4805759]
[1733197741260,2.08,228.56,228.54,6.4805759]
[1733197741467,2.08,228.55,228.54,6.4805759]
[1733197741865,2.08,228.56,228.55,2.1873]
[1733197748167,2.08,228.58,228.56,2.1872]
[1733197748366,2.08,228.58,228.56,8.6677759]
[1733197748770,2.08,228.58,228.57,2.1871]
[1733197750073,2.1868,228.62,228.58,2.187]
[1733197750373,2.08,228.61,228.59,6.4805759]
[1733197751171,2.08,228.61,228.57,6.4805759]
[1733197751972,2.08,228.61,228.57,8.6676759]
[1733197752573,2.08,228.61,228.57,6.4805759]
[1733197753372,4.2668,228.61,228.57,2.1871]
[1733197753872,2.1869,228.6,228.57,2.1871]
[1733197754175,2.08,228.61,228.57,2.1871]
[1733197754369,4.2668,228.61,228.57,2.1871]
[1733197754774,4.2668,228.61,228.56,6.4805759]
[1733197754775,2.08,228.61,228.58,2.187]
[1733197756576,2.08,228.61,228.57,2.1871]
[1733197756975,4.2668,228.61,228.56,8.6677759]
[1733197757174,2.08,228.61,228.47,21.25364635]
[1733197757478,2.1869,228.6,228.55,2.1873]
[1733197757669,2.08,228.61,228.55,2.1873]
[1733197759071,2.08,228.61,228.56,8.6677759]
[1733197759977,4.2668,228.61,228.56,8.6677759]
[1733197760170,2.08,228.61,228.56,6.4805759]
[1733197760577,2.08,228.61,228.59,6.4805759]
[1733197760969,2.08,228.61,228.6,2.1868]
[1733197762177,2.1863,228.66,228.61,2.1867]
[1733197762378,2.08,228.65,228.61,2.1867]
[1733197762778,4.2664,228.65,228.61,2.1867]
[1733197764073,2.08,228.65,228.59,6.4805759]
[1733197764270,2.08,228.65,228.62,2.1866]
[1733197766276,2.08,228.65,228.49,2.08]
[1733197766477,2.08,228.65,228.57,6.4805759]
[1733197766677,4.2665,228.65,228.57,6.4805759]
[1733197766981,2.08,228.65,228.6,2.1868]
[1733197767983,2.1865,228.64,228.6,2.1868]
[1733197769483,4.2664,228.65,228.6,2.1868]
[1733197770688,4.2664,228.65,228.61,2.1867]
[1733197770689,2.08,228.65,228.61,2.1867]
[1733197770885,2.08,228.65,228.62,6.4805759]
[1733197771086,2.08,228.64,228.62,6.4805759]
[1733197771391,2.7016,228.69,228.65,2.1863]
[1733197771585,2.08,228.68,228.65,2.1863]
[1733197771788,2.08,228.68,228.66,2.1863]
[1733197771989,2.1858,228.71,228.66,2.1863]
[1733197772186,2.08,228.7,228.66,2.1863]
[1733197773085,2.08,228.69,228.68,2.186]
[1733197774890,2.08,228.69,228.67,2.1862]
[1733197777190,4.266,228.69,228.64,8.6670759]
[1733197777789,2.1861,228.68,228.64,6.4805759]
[1733197778489,2.1861,228.68,228.63,2.1865]
[1733197778490,2.1862,228.67,228.63,2.1865]
[1733197778684,8.5605759,228.69,228.56,2.7484]
[1733197778891,6.4805759,228.67,228.6,8.6673759]
[1733197779287,2.1864,228.65,228.61,2.1868]
[1733197779592,2.08,228.64,228.61,2.1868]
[1733197781491,2.08,228.64,228.6,8.6673759]
[1733197781895,2.08,228.64,228.6,6.4805759]
[1733197782090,4.2665,228.64,228.6,6.4805759]
[1733197784092,4.2665,228.64,228.6,8.6673759]
[1733197786995,2.08,228.69,228.62,6.4805759]
[1733197787296,2.08,228.69,228.66,6.4805759]
[1733197787698,2.08,228.69,228.67,2.1861]
[1733197790892,2.08,228.69,228.66,8.6668759]
[1733197791097,2.08,228.69,228.64,6.4805759]
[1733197791494,2.08,228.69,228.64,8.6669759]
[1733197791700,4.2661,228.69,228.64,8.6669759]
[1733197791897,2.08,228.69,228.64,8.6669759]
[1733197793700,4.266,228.69,228.64,8.6669759]
[1733197795404,4.266,228.69,228.64,2.1864]
[1733197795605,4.266,228.69,228.64,8.6669759]
[1733197796409,4.266,228.69,228.65,2.1864]
[1733197797108,2.1861,228.68,228.64,8.6669759]
[1733197798313,2.1861,228.68,228.65,2.1864]
[1733197798907,2.08,228.69,228.65,2.1864]
[1733197799109,4.266,228.69,228.65,2.1864]
[1733197800913,4.266,228.69,228.66,6.4805759]
[1733197801810,4.266,228.69,228.65,8.6669759]
[1733197806615,2.08,228.69,228.54,18.64412556]
[1733197806811,2.1861,228.68,228.64,6.4805759]
[1733197808119,2.1861,228.68,228.64,8.6670759]
[1733197813719,8.5605759,228.69,228.6,2.1868]
[1733197813918,9.8853759,228.69,228.6,8.6673759]
[1733197814221,1.3195,228.7,228.66,6.4805759]
[1733197814416,2.08,228.69,228.66,6.4805759]
[1733197814719,1.3248,228.75,228.66,8.6668759]
[1733197814720,2.08,228.68,228.66,8.6668759]
[1733197814919,2.08,228.67,228.66,8.6668759]
[1733197815715,2.08,228.67,228.66,6.4805759]
[1733197816326,2.08,228.67,228.64,2.1864]
[1733197816527,2.08,228.67,228.64,8.6669759]
[1733197820424,2.08,228.67,228.62,6.4805759]
[1733197820626,2.1864,228.66,228.54,0.05190112]
[1733197820923,2.08,228.67,228.58,2.187]
[1733197820924,8.5605759,228.67,228.58,2.187]
[1733197821120,2.1865,228.64,228.59,1.09440885]
[1733197821430,8.5605759,228.67,228.58,6.4805759]
[1733197821626,2.1866,228.63,228.58,8.6675759]
[1733197821828,2.08,228.62,228.58,8.6675759]
[1733197822124,2.08,228.62,228.58,6.4805759]
[1733197822323,2.08,228.62,228.59,2.1869]
[1733197822524,2.08,228.62,228.59,8.6674759]
[1733197823617,2.08,228.62,228.59,6.4805759]
[1733197823815,2.08,228.62,228.53,18.59431601]
[1733197824024,2.08,228.62,228.59,6.4805759]
[1733197825021,2.08,228.62,228.59,8.6674759]
[1733197826320,2.08,228.62,228.6,2.1868]
[1733197828319,2.08,228.62,228.58,6.4805759]
[1733197828524,2.08,228.62,228.53,18.59431601]
[1733197828525,2.08,228.62,228.6,6.4805759]
[1733197829326,2.08,228.62,228.61,2.1868]
[1733197829629,2.08,228.62,228.53,18.59431601]
[1733197829630,2.08,228.62,228.58,6.4805759]
[1733197830929,2.08,228.62,228.59,2.1869]
[1733197831729,4.2667,228.62,228.59,2.1869]
[1733197833427,2.08,228.62,228.53,18.59431601]
[1733197833625,2.08,228.62,228.55,6.4805759]
[1733197833829,2.187,228.59,228.56,3.28179656]
[1733197834023,8.5605759,228.62,228.53,18.59431601]
[1733197834228,8.5605759,228.62,228.54,2.84604534]
[1733197834426,2.187,228.59,228.55,1.09463282]
[1733197834733,2.187,228.59,228.54,2.1873]
[1733197835032,2.187,228.59,228.55,1.09466298]
[1733197835233,2.187,228.59,228.54,2.1873]
[1733197835430,6.4805759,228.6,228.55,1.09466357]
[1733197835632,6.4805759,228.6,228.52,2.1876]
[1733197836235,2.1872,228.57,228.52,2.1876]
[1733197836538,2.08,228.56,228.52,2.1876]
[1733197836835,4.2673,228.56,228.52,2.1876]
[1733197837026,4.2673,228.56,228.51,6.4805759]
[1733197837938,2.1875,228.54,228.49,8.6684759]
[1733197838237,2.1875,228.54,228.49,6.4805759]
[1733197839028,2.1875,228.54,228.5,2.1878]
[1733197839828,2.1873,228.55,228.5,2.1878]
[1733197840033,2.08,228.56,228.53,6.4805759]
[1733197841333,2.08,228.56,228.54,2.1874]
[1733197841640,2.08,228.56,228.53,6.4805759]
[1733197842232,2.08,228.56,228.52,2.1875]
[1733197842438,2.08,228.56,228.51,6.4805759]
[1733197842733,4.2672,228.56,228.51,8.6682759]
[1733197842934,2.08,228.56,228.45,1.3535]
[1733197843239,2.08,228.56,228.49,6.4805759]
[1733197844033,2.1874,228.54,228.49,6.4805759]
[1733197844239,2.08,228.56,228.49,6.4805759]
[1733197844633,2.08,228.56,228.49,8.6684759]
[1733197845033,2.08,228.56,228.49,6.4805759]
[1733197845844,2.1876,228.52,228.49,6.4805759]
[1733197846036,2.08,228.51,228.49,6.4805759]
[1733197848037,2.08,228.51,228.48,2.188]
[1733197851649,4.2677,228.51,228.47,8.6686759]
[1733197852245,4.2677,228.51,228.47,2.1881]
[1733197852446,4.2677,228.51,228.47,8.6686759]
[1733197853341,4.2677,228.51,228.47,2.1881]
[1733197853745,4.2677,228.51,228.47,8.6686759]
[1733197853948,2.1878,228.5,228.47,2.1881]
[1733197854338,2.1878,228.5,228.46,8.6687759]
[1733197855147,2.1878,228.5,228.47,2.1881]
[1733197856047,2.1878,228.5,228.46,8.6687759]
[1733197857550,2.1878,228.5,228.47,2.1881]
[1733197858542,2.08,228.51,228.48,6.4805759]
[1733197858845,2.08,228.51,228.42,1.2732]
[1733197859042,2.08,228.51,228.5,6.4805759]
[1733197859242,2.08,228.51,228.5,8.6683759]
[1733197861050,2.08,228.51,228.5,6.4805759]
[1733197862051,2.08,228.51,228.5,8.6683759]
[1733197864451,2.08,228.51,228.5,2.1878]
[1733197865453,2.08,228.51,228.48,6.4805759]
[1733197865654,2.08,228.51,228.47,6.4805759]
[1733197867056,4.2677,228.51,228.48,2.188]
[1733197867852,4.2677,228.51,228.47,8.6686759]
[1733197868860,4.2677,228.51,228.48,2.188]
[1733197871760,2.08,228.51,228.48,2.188]
[1733197873161,2.08,228.51,228.4,18.60442413]
[1733197873357,2.08,228.51,228.44,6.4805759]
[1733197873770,2.08,228.51,228.44,2.1884]
[1733197873963,6.4805759,228.5,228.4,18.60442413]
[1733197874153,2.1881,228.48,228.41,8.6691759]
[1733197874352,6.4805759,228.5,228.41,8.6691759]
[1733197875265,2.1883,228.46,228.41,8.6691759]
[1733197875463,2.08,228.45,228.41,8.6691759]
[1733197875762,2.08,228.44,228.41,8.6691759]
[1733197875957,2.08,228.43,228.4,2.1888]
[1733197876162,2.08,228.43,228.4,6.4805759]
[1733197876460,2.08,228.43,228.38,0.16853]
[1733197876665,2.1887,228.42,228.38,0.16853]
[1733197876865,2.08,228.43,228.38,0.16853]
[1733197877162,2.1888,228.4,228.38,0.16853]
[1733197877865,2.08,228.43,228.38,0.16853]
[1733197878157,2.1889,228.39,228.38,0.16853]
[1733197879162,6.4805759,228.4,228.28,1.264]
[1733197879358,2.1891,228.37,228.32,6.4805759]
[1733197879963,6.4805759,228.38,228.3,2.1897]
[1733197880164,6.4805759,228.38,228.32,6.4805759]
[1733197881066,2.1892,228.36,228.32,6.4805759]
[1733197881461,2.1893,228.35,228.29,2.1897]
[1733197881661,2.08,228.34,228.3,1.0957621]
[1733197881861,2.08,228.34,228.29,8.6702759]
[1733197882166,2.08,228.34,228.3,1.09576373]
[1733197882364,2.08,228.34,228.3,2.1897]
[1733197885168,2.1895,228.32,228.28,0.35005]
[1733197886566,2.08,228.34,228.31,2.1896]
[1733197886866,2.08,228.34,228.3,6.4805759]
[1733197887066,16.88133752,228.46,228.32,8.6699759]
[1733197887067,2.1891,228.38,228.32,8.6699759]
[1733197887369,2.08,228.39,228.36,6.4805759]
[1733197887561,2.08,228.39,228.38,6.4805759]
[1733197887966,2.08,228.39,228.38,8.6695759]
[1733197888366,2.08,228.39,228.38,2.189]
[1733197890368,2.08,228.39,228.36,6.4805759]
[1733197890670,2.08,228.39,228.35,6.4805759]
[1733197891970,2.08,228.39,228.36,2.1891]
[1733197892268,2.08,228.39,228.35,6.4805759]
[1733197892462,2.08,228.39,228.36,2.1891]
[1733197894062,2.08,228.39,228.29,1.3592]
[1733197894063,2.08,228.39,228.34,6.4805759]
[1733197894264,2.08,228.39,228.29,1.3592]
[1733197894462,2.08,228.39,228.33,6.4805759]
[1733197895974,4.2689,228.39,228.35,2.1892]
[1733197896172,4.2689,228.39,228.35,8.6697759]
[1733197897271,2.08,228.38,228.33,6.4805759]
[1733197898865,2.1891,228.37,228.34,2.1893]
[1733197899070,2.08,228.38,228.34,2.1893]
[1733197899471,2.08,228.38,228.35,2.1892]
[1733197903570,2.08,228.38,228.33,6.4805759]
[1733197903571,4.269,228.38,228.34,2.1893]
[1733197903779,2.08,228.38,228.29,1.3592]
[1733197903973,8.5605759,228.38,228.3,6.4805759]
[1733197904275,8.5605759,228.38,228.29,1.3592]
[1733197904276,6.4805759,228.36,228.29,1.3592]
[1733197904476,6.4805759,228.36,228.29,6.4805759]
[1733197904872,2.1892,228.35,228.31,2.1895]
[1733197905469,2.1892,228.35,228.31,8.6701759]
[1733197906775,2.08,228.38,228.31,6.4805759]
[1733197906976,2.08,228.37,228.33,6.4805759]
[1733197907175,2.08,228.36,228.33,6.4805759]
[1733197907377,2.08,228.35,228.34,2.1893]
[1733197907573,2.1889,228.39,228.33,6.4805759]
[1733197907574,2.08,228.36,228.33,6.4805759]
[1733197907771,8.5605759,228.36,228.23,19.95700153]
[1733197907968,8.5605759,228.36,228.29,6.4805759]
[1733197908370,2.08,228.36,228.29,6.4805759]
[1733197908577,2.08,228.36,228.31,2.1896]
[1733197908578,4.2692,228.36,228.31,2.1896]
[1733197908773,4.2692,228.36,228.31,8.6701759]
[1733197909175,4.2692,228.36,228.31,6.4805759]
[1733197909372,4.2692,228.36,228.32,2.1895]
[1733197917486,2.08,228.36,228.29,6.4805759]
[1733197917683,2.1893,228.35,228.31,2.1896]
[1733197918382,2.1894,228.34,228.3,2.1897]
[1733197918586,2.08,228.36,228.29,6.4805759]
[1733197918887,2.08,228.36,228.3,1.09575135]
[1733197919089,2.08,228.36,228.31,1.09575135]
[1733197919284,2.08,228.36,228.31,6.4805759]
[1733197920091,2.08,228.36,228.33,2.1894]
[1733197920290,16.88155162,228.45,228.33,6.4805759]
[1733197920592,2.1888,228.4,228.36,2.1891]
[1733197920790,2.08,228.39,228.36,2.1891]
[1733197921187,16.88155162,228.45,228.35,6.4805759]
[1733197921389,8.5605759,228.44,228.37,6.4805759]
[1733197921591,2.08,228.43,228.39,2.1888]
[1733197921991,2.08,228.43,228.37,6.4805759]
[1733197922392,2.1886,228.42,228.37,6.4805759]
[1733197922795,2.08,228.43,228.37,6.4805759]
[1733197923190,6.4805759,228.44,228.37,6.4805759]
[1733197923391,2.08,228.43,228.37,6.4805759]
[1733197923989,4.2685,228.43,228.39,2.1888]
[1733197924196,2.08,228.43,228.37,6.4805759]
[1733197924392,2.08,228.42,228.39,6.4805759]
[1733197924593,2.08,228.42,228.4,1.09544927]
[1733197924794,2.08,228.42,228.39,6.4805759]
[1733197924995,2.1883,228.45,228.4,3.28409484]
[1733197925194,2.08,228.44,228.33,0.05218141]
[1733197925395,2.08,228.44,228.37,6.4805759]
[1733197925704,2.08,228.44,228.38,1.09544595]
[1733197925905,2.08,228.44,228.39,1.09544595]
[1733197926106,2.08,228.44,228.37,6.4805759]
[1733197926308,2.1886,228.43,228.38,3.28435005]
[1733197926510,2.1886,228.43,228.39,1.09545005]
[1733197926704,2.1886,228.43,228.37,6.4805759]
[1733197926905,2.1886,228.43,228.38,1.09543309]
[1733197927108,2.1886,228.43,228.39,1.09543309]
[1733197927408,2.1886,228.43,228.37,6.4805759]
[1733197927603,2.1886,228.43,228.38,1.09542804]
[1733197927798,2.1886,228.43,228.39,1.09542804]
[1733197928005,2.1886,228.43,228.39,2.1889]
[1733197929005,2.08,228.44,228.32,0.05208175]
[1733197929197,6.4805759,228.43,228.35,6.4805759]
[1733197929404,6.4805759,228.43,228.36,1.09541767]
[1733197929708,6.4805759,228.43,228.37,1.09541767]
[1733197930001,6.4805759,228.43,228.35,6.4805759]
[1733197930199,6.4805759,228.43,228.36,1.09550016]
[1733197930402,2.1887,228.41,228.37,3.28450016]
[1733197930701,2.1887,228.41,228.37,2.189]
[1733197931097,2.1888,228.4,228.37,2.189]
[1733197931304,2.1888,228.4,228.35,6.4805759]
[1733197931305,2.08,228.39,228.35,6.4805759]
[1733197931706,4.2689,228.39,228.36,1.09553415]
[1733197932010,2.08,228.39,228.37,1.09553415]
[1733197932302,2.08,228.39,228.35,6.4805759]
[1733197932502,2.08,228.39,228.36,1.09559982]
[1733197932706,2.08,228.39,228.35,8.6697759]
[1733197932907,2.08,228.39,228.36,1.09556317]
[1733197933107,2.08,228.39,228.35,8.6697759]